fUSD/lending_fUSD_20250618
["ID","MTS","AMOUNT","RATE_DAILY","PERIOD"]
[366356282,1750206641215,-359.01422854,0.00016438,2]
[366356283,1750206641225,-490.0,0.00016438,2]
[366356284,1750206641235,-490.0,0.00016438,2]
[366356285,1750206641245,-490.0,0.00016438,2]
[366356286,1750206641255,-490.0,0.00016438,2]
[366356287,1750206641265,-490.0,0.00016438,2]
[366356288,1750206641274,-490.0,0.00016438,2]
[366356289,1750206641284,-490.0,0.00016438,2]
[366356290,1750206641294,-811.14,0.00016438,2]
[366356291,1750206641304,-490.0,0.00016438,2]
[366356292,1750206641314,-151.0,0.00016438,2]
[366356293,1750206641325,-490.0,0.00016438,2]
[366356294,1750206641335,-810.97,0.00016438,2]
[366356295,1750206641345,-490.0,0.00016438,2]
[366356296,1750206641359,-490.0,0.00016438,2]
[366356297,1750206641370,-490.0,0.00016438,2]
[366356298,1750206641380,-490.0,0.00016438,2]
[366356299,1750206641390,-490.0,0.00016438,2]
[366356300,1750206641401,-490.0,0.00016438,2]
[366356301,1750206641411,-490.0,0.00016438,2]
[366356302,1750206641421,-490.0,0.00016438,2]
[366356303,1750206641431,-490.0,0.00016438,2]
[366356304,1750206641442,-490.0,0.00016438,2]
[366356305,1750206641452,-490.0,0.00016438,2]
[366356306,1750206641461,-490.0,0.00016438,2]
[366356307,1750206641471,-490.0,0.00016438,2]
[366356308,1750206641480,-577.02683123,0.00016438,2]
[366356309,1750206641490,-490.0,0.00016438,2]
[366356310,1750206641500,-579.85,0.00016438,2]
[366356311,1750206641509,-490.0,0.00016438,2]
[366356312,1750206641519,-490.0,0.00016438,2]
[366356313,1750206641529,-500.96046356,0.00016438,2]
[366356314,1750206641539,-490.0,0.00016438,2]
[366356315,1750206641549,-490.0,0.00016438,2]
[366356316,1750206641558,-490.0,0.00016438,2]
[366356317,1750206641568,-490.0,0.00016438,2]
[366356318,1750206641578,-490.0,0.00016438,2]
[366356319,1750206641587,-490.0,0.00016438,2]
[366356320,1750206641597,-490.0,0.00016438,2]
[366356321,1750206641607,-490.0,0.00016438,2]
[366356322,1750206641617,-490.0,0.00016438,2]
[366356323,1750206641627,-490.0,0.00016438,2]
[366356324,1750206641637,-490.0,0.00016438,2]
[366356325,1750206641646,-490.0,0.00016438,2]
[366356326,1750206641656,-300.0,0.00016438,2]
[366356327,1750206641666,-490.0,0.00016438,2]
[366356328,1750206641675,-490.0,0.00016438,2]
[366356329,1750206641685,-490.0,0.00016438,2]
[366356330,1750206641694,-490.0,0.00016438,2]
[366356331,1750206641704,-490.0,0.00016438,2]
[366356332,1750206641714,-813.54,0.00016438,2]
[366356333,1750206641723,-490.0,0.00016438,2]
[366356334,1750206641734,-1185.3,0.00016438,2]
[366356335,1750206641743,-490.0,0.00016438,2]
[366356336,1750206641753,-490.0,0.00016438,2]
[366356337,1750206641763,-490.0,0.00016438,2]
[366356338,1750206641773,-490.0,0.00016438,2]
[366356339,1750206641782,-557.66,0.00016438,2]
[366356340,1750206641792,-490.0,0.00016438,2]
[366356341,1750206641803,-573.73473048,0.00016438,2]
[366356342,1750206641813,-1005.29,0.00016438,2]
[366356343,1750206641823,-490.0,0.00016438,2]
[366356344,1750206641833,-769.83,0.00016438,2]
[366356345,1750206641844,-490.0,0.00016438,2]
[366356346,1750206641855,-1550.93,0.00016438,2]
[366356347,1750206641864,-2636.321242,0.00016438,2]
[366356348,1750206641873,-151.0,0.00016438,2]
[366356349,1750206641883,-490.0,0.00016438,2]
[366356350,1750206641893,-490.0,0.00016438,2]
[366356351,1750206641903,-490.0,0.00016438,2]
[366356352,1750206641913,-490.0,0.00016438,2]
[366356353,1750206641924,-490.0,0.00016438,2]
[366356354,1750206641934,-490.0,0.00016438,2]
[366356355,1750206641943,-490.0,0.00016438,2]
[366356356,1750206641954,-490.0,0.00016438,2]
[366356357,1750206641964,-490.0,0.00016438,2]
[366356358,1750206641973,-490.0,0.00016438,2]
[366356359,1750206641983,-490.0,0.00016438,2]
[366356360,1750206641993,-1123.91,0.00016438,2]
[366356361,1750206642002,-490.0,0.00016438,2]
[366356362,1750206642012,-490.0,0.00016438,2]
[366356363,1750206642024,-490.0,0.00016438,2]
[366356364,1750206642033,-490.0,0.00016438,2]
[366356365,1750206642043,-490.0,0.00016438,2]
[366356366,1750206642055,-490.0,0.00016438,2]
[366356367,1750206642065,-490.0,0.00016438,2]
[366356368,1750206642075,-490.0,0.00016438,2]
[366356369,1750206642084,-490.0,0.00016438,2]
[366356370,1750206642094,-490.0,0.00016438,2]
[366356371,1750206642103,-151.0,0.00016438,2]
[366356372,1750206642114,-229.963563,0.00016438,2]
[366356373,1750206642124,-2834.949583,0.00016438,2]
[366356374,1750206642133,-490.0,0.00016438,2]
[366356375,1750206642143,-490.0,0.00016438,2]
[366356376,1750206642153,-977.68,0.00016438,2]
[366356377,1750206642163,-159.843096,0.00016438,2]
[366356378,1750206642172,-151.0,0.00016438,2]
[366356379,1750206642182,-490.0,0.00016438,2]
[366356380,1750206642191,-490.0,0.00016438,2]
[366356381,1750206642201,-781.2,0.00016438,2]
[366356382,1750206642211,-722.43,0.00016438,2]
[366356383,1750206642221,-160.104727,0.00016438,2]
[366356384,1750206642230,-490.0,0.00016438,2]
[366356385,1750206642240,-490.0,0.00016438,2]
[366356386,1750206642250,-151.0,0.00016438,2]
[366356387,1750206642260,-490.0,0.00016438,2]
[366356388,1750206642270,-151.0,0.00016438,2]
[366356389,1750206642280,-490.0,0.00016438,2]
[366356390,1750206642290,-490.0,0.00016438,2]
[366356391,1750206642299,-151.0,0.00016438,2]
[366356392,1750206642309,-490.0,0.00016438,2]
[366356393,1750206642319,-490.0,0.00016438,2]
[366356394,1750206642330,-490.0,0.00016438,2]
[366356395,1750206642340,-634.62,0.00016438,2]
[366356396,1750206642354,-151.0,0.00016438,2]
[366356397,1750206642364,-151.0,0.00016438,2]
[366356398,1750206642373,-490.0,0.00016438,2]
[366356399,1750206642383,-490.0,0.00016438,2]
[366356400,1750206642393,-490.0,0.00016438,2]
[366356401,1750206642403,-490.0,0.00016438,2]
[366356402,1750206642413,-151.0,0.00016438,2]
[366356403,1750206642424,-490.0,0.00016438,2]
[366356404,1750206642434,-151.0,0.00016438,2]
[366356405,1750206642444,-156.829419,0.00016438,2]
[366356406,1750206642453,-490.0,0.00016438,2]
[366356407,1750206642464,-490.0,0.00016438,2]
[366356408,1750206642473,-151.0,0.00016438,2]
[366356409,1750206642483,-151.0,0.00016438,2]
[366356410,1750206642493,-490.0,0.00016438,2]
[366356411,1750206642502,-784.45,0.00016438,2]
[366356412,1750206642512,-490.0,0.00016438,2]
[366356413,1750206642522,-490.0,0.00016438,2]
[366356414,1750206642532,-490.0,0.00016438,2]
[366356415,1750206642541,-151.0,0.00016438,2]
[366356416,1750206642551,-160.872387,0.00016438,2]
[366356417,1750206642561,-160.872387,0.00016438,2]
[366356418,1750206642571,-490.0,0.00016438,2]
[366356419,1750206642581,-617.83,0.00016438,2]
[366356420,1750206642591,-490.0,0.00016438,2]
[366356421,1750206642601,-160.872387,0.00016438,2]
[366356422,1750206642612,-490.0,0.00016438,2]
[366356423,1750206642624,-160.872387,0.00016438,2]
[366356424,1750206642634,-151.0,0.00016438,2]
[366356425,1750206642644,-229.639886,0.00016438,2]
[366356426,1750206642654,-490.0,0.00016438,2]
[366356427,1750206642663,-490.0,0.00016438,2]
[366356428,1750206642673,-490.0,0.00016438,2]
[366356429,1750206642683,-490.0,0.00016438,2]
[366356430,1750206642693,-151.0,0.00016438,2]
[366356431,1750206642702,-490.0,0.00016438,2]
[366356432,1750206642712,-151.0,0.00016438,2]
[366356433,1750206642721,-151.0,0.00016438,2]
[366356434,1750206642731,-490.0,0.00016438,2]
[366356435,1750206642740,-490.0,0.00016438,2]
[366356436,1750206642751,-490.0,0.00016438,2]
[366356437,1750206642761,-151.0,0.00016438,2]
[366356438,1750206642771,-151.0,0.00016438,2]
[366356439,1750206642781,-151.0,0.00016438,2]
[366356440,1750206642791,-490.0,0.00016438,2]
[366356441,1750206642800,-151.0,0.00016438,2]
[366356442,1750206642810,-490.0,0.00016438,2]
[366356443,1750206642819,-151.0,0.00016438,2]
[366356444,1750206642829,-819.74,0.00016438,2]
[366356445,1750206642839,-490.0,0.00016438,2]
[366356446,1750206642848,-490.0,0.00016438,2]
[366356447,1750206642858,-526.69,0.00016438,2]
[366356448,1750206642867,-490.0,0.00016438,2]
[366356449,1750206642878,-151.0,0.00016438,2]
[366356450,1750206642888,-184.72030889,0.00016438,2]
[366356458,1750206643070,-305.27969111,0.00016438,2]
[366356459,1750206643081,-490.0,0.00016438,2]
[366356460,1750206643091,-490.0,0.00016438,2]
[366356461,1750206643100,-490.0,0.00016438,2]
[366356462,1750206643110,-490.0,0.00016438,2]
[366356463,1750206643119,-235.506388,0.00016438,2]
[366356464,1750206643129,-151.0,0.00016438,2]
[366356465,1750206643139,-151.0,0.00016438,2]
[366356466,1750206643149,-490.0,0.00016438,2]
[366356467,1750206643159,-490.0,0.00016438,2]
[366356468,1750206643169,-490.0,0.00016438,2]
[366356469,1750206643179,-592.53,0.00016438,2]
[366356470,1750206643189,-522.36,0.00016438,2]
[366356471,1750206643199,-151.0,0.00016438,2]
[366356472,1750206643209,-490.0,0.00016438,2]
[366356473,1750206643220,-587.54,0.00016438,2]
[366356474,1750206643230,-151.0,0.00016438,2]
[366356475,1750206643240,-1244.11,0.00016438,2]
[366356476,1750206643251,-517.0,0.00016438,2]
[366356477,1750206643261,-155.595,0.00016438,2]
[366356478,1750206643271,-490.0,0.00016438,2]
[366356479,1750206643281,-490.0,0.00016438,2]
[366356480,1750206643290,-151.0,0.00016438,2]
[366356481,1750206643300,-151.180802,0.00016438,2]
[366356482,1750206643310,-753.82,0.00016438,2]
[366356483,1750206643320,-672.29,0.00016438,2]
[366356484,1750206643329,-490.0,0.00016438,2]
[366356485,1750206643339,-490.0,0.00016438,2]
[366356486,1750206643351,-490.0,0.00016438,2]
[366356487,1750206643361,-490.0,0.00016438,2]
[366356488,1750206643371,-490.0,0.00016438,2]
[366356489,1750206643383,-1767.72,0.00016438,2]
[366356490,1750206643393,-519.9525053,0.00016438,2]
[366356491,1750206643403,-490.0,0.00016438,2]
[366356492,1750206643413,-490.0,0.00016438,2]
[366356493,1750206643423,-679.46,0.00016438,2]
[366356494,1750206643432,-490.0,0.00016438,2]
[366356495,1750206643443,-1164.55,0.00016438,2]
[366356496,1750206643452,-936.15,0.00016438,2]
[366356497,1750206643462,-490.0,0.00016438,2]
[366356498,1750206643472,-1031.95561359,0.00016438,2]
[366356499,1750206644168,-363.40438641,0.00016438,2]
[366356500,1750206644177,-223.14351324,0.00016438,2]
[366356501,1750206644492,-266.85648676,0.00016438,2]
[366356502,1750206644502,-490.0,0.00016438,2]
[366356503,1750206644511,-490.0,0.00016438,2]
[366356504,1750206644521,-490.0,0.00016438,2]
[366356505,1750206644530,-490.0,0.00016438,2]
[366356506,1750206644541,-1339.98,0.00016438,2]
[366356507,1750206644551,-490.0,0.00016438,2]
[366356508,1750206644560,-490.0,0.00016438,2]
[366356509,1750206644569,-430.0,0.00016438,2]
[366356510,1750206644579,-490.0,0.00016438,2]
[366356511,1750206644588,-1497.82,0.00016438,2]
[366356512,1750206644598,-490.0,0.00016438,2]
[366356513,1750206644607,-490.0,0.00016438,2]
[366356514,1750206644617,-490.0,0.00016438,2]
[366356515,1750206644627,-490.0,0.00016438,2]
[366356516,1750206644637,-490.0,0.00016438,2]
[366356517,1750206644646,-490.0,0.00016438,2]
[366356518,1750206644656,-490.0,0.00016438,2]
[366356519,1750206644666,-500.0,0.00016438,2]
[366356520,1750206644676,-500.0,0.00016438,2]
[366356521,1750206644688,-490.0,0.00016438,2]
[366356522,1750206644698,-500.0,0.00016438,2]
[366356523,1750206644708,-514.9196729,0.00016438,2]
[366356524,1750206644717,-490.0,0.00016438,2]
[366356525,1750206644727,-490.0,0.00016438,2]
[366356526,1750206644736,-584.71,0.00016438,2]
[366356527,1750206644746,-490.0,0.00016438,2]
[366356528,1750206644756,-1243.02,0.00016438,2]
[366356529,1750206644765,-490.0,0.00016438,2]
[366356530,1750206644774,-490.0,0.00016438,2]
[366356531,1750206644783,-151.0,0.00016438,2]
[366356532,1750206644792,-151.0,0.00016438,2]
[366356533,1750206644802,-550.17,0.00016438,2]
[366356534,1750206644813,-490.0,0.00016438,2]
[366356535,1750206644825,-490.0,0.00016438,2]
[366356536,1750206644835,-507.84234672,0.00016438,2]
[366356537,1750206644846,-1568.04,0.00016438,2]
[366356538,1750206644856,-1532.21,0.00016438,2]
[366356539,1750206644866,-1669.62,0.00016438,2]
[366356540,1750206644875,-570.37609179,0.00016438,2]
[366356541,1750206644885,-490.0,0.00016438,2]
[366356542,1750206644894,-490.0,0.00016438,2]
[366356543,1750206644903,-490.0,0.00016438,2]
[366356544,1750206644913,-643.52,0.00016438,2]
[366356545,1750206644922,-743.3,0.00016438,2]
[366356546,1750206644932,-490.0,0.00016438,2]
[366356547,1750206644941,-490.0,0.00016438,2]
[366356548,1750206644951,-490.0,0.00016438,2]
[366356549,1750206644961,-490.0,0.00016438,2]
[366356550,1750206644971,-151.0,0.00016438,2]
[366356551,1750206644980,-151.0,0.00016438,2]
[366356552,1750206644990,-490.0,0.00016438,2]
[366356553,1750206645000,-1182.91,0.00016438,2]
[366356554,1750206645009,-822.71,0.00016438,2]
[366356555,1750206645019,-490.0,0.00016438,2]
[366356556,1750206645028,-490.0,0.00016438,2]
[366356557,1750206645038,-151.0,0.00016438,2]
[366356558,1750206645050,-1030.64,0.00016438,2]
[366356559,1750206645059,-490.0,0.00016438,2]
[366356560,1750206645069,-151.0,0.00016438,2]
[366356561,1750206645078,-490.0,0.00016438,2]
[366356562,1750206645088,-151.0,0.00016438,2]
[366356563,1750206645098,-490.0,0.00016438,2]
[366356564,1750206645107,-490.0,0.00016438,2]
[366356565,1750206645117,-490.0,0.00016438,2]
[366356566,1750206645127,-490.0,0.00016438,2]
[366356567,1750206645137,-490.0,0.00016438,2]
[366356568,1750206645146,-490.0,0.00016438,2]
[366356569,1750206645156,-1253.09,0.00016438,2]
[366356570,1750206645165,-1395.7,0.00016438,2]
[366356571,1750206645175,-341.00524967,0.00016438,2]
[366356572,1750206645184,-490.0,0.00016438,2]
[366356573,1750206645193,-1520.61,0.00016438,2]
[366356574,1750206645203,-490.0,0.00016438,2]
[366356575,1750206645213,-1000.0,0.00016438,2]
[366356576,1750206645223,-490.0,0.00016438,2]
[366356577,1750206645233,-652.03,0.00016438,2]
[366356578,1750206645243,-1087.39,0.00016438,2]
[366356579,1750206645253,-490.0,0.00016438,2]
[366356580,1750206645263,-490.0,0.00016438,2]
[366356581,1750206645272,-490.0,0.00016438,2]
[366356582,1750206645282,-490.0,0.00016438,2]
[366356583,1750206645292,-490.0,0.00016438,2]
[366356584,1750206645302,-490.0,0.00016438,2]
[366356585,1750206645313,-775.74,0.00016438,2]
[366356586,1750206645323,-490.0,0.00016438,2]
[366356587,1750206645335,-490.0,0.00016438,2]
[366356588,1750206645345,-490.0,0.00016438,2]
[366356589,1750206645359,-538.08,0.00016438,2]
[366356590,1750206645369,-1338.37,0.00016438,2]
[366356591,1750206645378,-1448.56,0.00016438,2]
[366356592,1750206645388,-490.0,0.00016438,2]
[366356593,1750206645398,-490.0,0.00016438,2]
[366356594,1750206645409,-460.0,0.00016438,2]
[366356595,1750206645418,-950.66,0.00016438,2]
[366356596,1750206645428,-477.24361219,0.00016438,2]
[366356597,1750206645438,-765.97,0.00016438,2]
[366356598,1750206645448,-490.0,0.00016438,2]
[366356599,1750206645459,-490.0,0.00016438,2]
[366356600,1750206645469,-490.0,0.00016438,2]
[366356601,1750206645479,-1868.81,0.00016438,2]
[366356602,1750206645489,-490.0,0.00016438,2]
[366356603,1750206645499,-151.0,0.00016438,2]
[366356604,1750206645513,-490.0,0.00016438,2]
[366356605,1750206645523,-2039.5,0.00016438,2]
[366356606,1750206645534,-151.0,0.00016438,2]
[366356607,1750206645544,-1426.03,0.00016438,2]
[366356608,1750206645554,-490.0,0.00016438,2]
[366356609,1750206645564,-850.03,0.00016438,2]
[366356610,1750206645573,-558.0,0.00016438,2]
[366356611,1750206645583,-151.0,0.00016438,2]
[366356612,1750206645593,-490.0,0.00016438,2]
[366356613,1750206645603,-151.0,0.00016438,2]
[366356614,1750206645615,-1629.19,0.00016438,2]
[366356615,1750206645626,-490.0,0.00016438,2]
[366356616,1750206645636,-638.42,0.00016438,2]
[366356617,1750206645646,-853.18,0.00016438,2]
[366356618,1750206645655,-1322.12,0.00016438,2]
[366356619,1750206645665,-490.0,0.00016438,2]
[366356620,1750206645675,-857.51,0.00016438,2]
[366356621,1750206645685,-623.57,0.00016438,2]
[366356622,1750206645698,-842.54,0.00016438,2]
[366356623,1750206645708,-490.0,0.00016438,2]
[366356624,1750206645718,-490.0,0.00016438,2]
[366356625,1750206645727,-226.279296,0.00016438,2]
[366356626,1750206645737,-490.0,0.00016438,2]
[366356627,1750206645751,-490.0,0.00016438,2]
[366356628,1750206645762,-490.0,0.00016438,2]
[366356629,1750206645771,-490.0,0.00016438,2]
[366356630,1750206645781,-1079.51,0.00016438,2]
[366356632,1750206645791,-718.42,0.00016438,2]
[366356633,1750206645800,-490.0,0.00016438,2]
[366356634,1750206645810,-490.0,0.00016438,2]
[366356635,1750206645822,-578.58,0.00016438,2]
[366356636,1750206645831,-265.57501091,0.00016438,2]
[366356637,1750206645841,-490.0,0.00016438,2]
[366356638,1750206645850,-1089.86,0.00016438,2]
[366356639,1750206645860,-490.0,0.00016438,2]
[366356640,1750206645870,-151.0,0.00016438,2]
[366356641,1750206645881,-151.0,0.00016438,2]
[366356642,1750206645890,-472.32293525,0.00016438,2]
[366356643,1750206645900,-860.74,0.00016438,2]
[366356644,1750206645909,-490.0,0.00016438,2]
[366356645,1750206645919,-923.89,0.00016438,2]
[366356646,1750206645928,-490.0,0.00016438,2]
[366356647,1750206645938,-847.69,0.00016438,2]
[366356648,1750206645948,-490.0,0.00016438,2]
[366356649,1750206645957,-490.0,0.00016438,2]
[366356650,1750206645967,-490.0,0.00016438,2]
[366356651,1750206645977,-332.10783646,0.00016438,2]
[366356652,1750206645988,-490.0,0.00016438,2]
[366356653,1750206646000,-490.0,0.00016438,2]
[366356655,1750206646009,-490.0,0.00016438,2]
[366356657,1750206646018,-853.61,0.00016438,2]
[366356658,1750206646028,-490.0,0.00016438,2]
[366356659,1750206646037,-490.0,0.00016438,2]
[366356660,1750206646047,-490.0,0.00016438,2]
[366356661,1750206646056,-490.0,0.00016438,2]
[366356662,1750206646066,-151.0,0.00016438,2]
[366356663,1750206646075,-151.0,0.00016438,2]
[366356664,1750206646084,-973.85,0.00016438,2]
[366356665,1750206646094,-490.0,0.00016438,2]
[366356666,1750206646105,-490.0,0.00016438,2]
[366356667,1750206646115,-490.0,0.00016438,2]
[366356668,1750206646124,-151.0,0.00016438,2]
[366356669,1750206646135,-419.9788683,0.00016438,2]
[366356670,1750206646144,-151.0,0.00016438,2]
[366356671,1750206646154,-490.0,0.00016438,2]
[366356672,1750206646163,-490.0,0.00016438,2]
[366356673,1750206646173,-490.0,0.00016438,2]
[366356674,1750206646183,-490.0,0.00016438,2]
[366356675,1750206646193,-490.0,0.00016438,2]
[366356676,1750206646202,-490.0,0.00016438,2]
[366356677,1750206646213,-1463.72,0.00016438,2]
[366356678,1750206646223,-151.0,0.00016438,2]
[366356679,1750206646234,-1519.47,0.00016438,2]
[366356680,1750206646244,-490.0,0.00016438,2]
[366356681,1750206646253,-151.0,0.00016438,2]
[366356682,1750206646263,-808.26,0.00016438,2]
[366356683,1750206646273,-292.03191,0.00016438,2]
[366356684,1750206646284,-733.64,0.00016438,2]
[366356685,1750206646293,-490.0,0.00016438,2]
[366356686,1750206646302,-292.03191,0.00016438,2]
[366356687,1750206646312,-151.0,0.00016438,2]
[366356688,1750206646322,-1069.77,0.00016438,2]
[366356689,1750206646331,-151.0,0.00016438,2]
[366356690,1750206646344,-292.03191,0.00016438,2]
[366356691,1750206646357,-292.03191,0.00016438,2]
[366356692,1750206646367,-490.0,0.00016438,2]
[366356693,1750206646379,-490.0,0.00016438,2]
[366356694,1750206646388,-151.0,0.00016438,2]
[366356695,1750206646399,-984.34,0.00016438,2]
[366356696,1750206646409,-151.0,0.00016438,2]
[366356697,1750206646418,-609.81,0.00016438,2]
[366356698,1750206646429,-151.63081,0.00016438,2]
[366356699,1750206646439,-1092.19,0.00016438,2]
[366356700,1750206646448,-788.85,0.00016438,2]
[366356701,1750206646458,-151.0,0.00016438,2]
[366356702,1750206646468,-490.0,0.00016438,2]
[366356703,1750206646478,-490.0,0.00016438,2]
[366356704,1750206646488,-490.0,0.00016438,2]
[366356705,1750206646498,-490.0,0.00016438,2]
[366356706,1750206646507,-867.08,0.00016438,2]
[366356707,1750206646517,-1010.29,0.00016438,2]
[366356708,1750206646527,-490.0,0.00016438,2]
[366356709,1750206646536,-160.06019515,0.00016438,2]
[366356710,1750206646546,-151.0,0.00016438,2]
[366356711,1750206646555,-151.0,0.00016438,2]
[366356712,1750206646565,-490.0,0.00016438,2]
[366356713,1750206646575,-1997.67,0.00016438,2]
[366356714,1750206646584,-490.0,0.00016438,2]
[366356715,1750206646594,-151.0,0.00016438,2]
[366356716,1750206646603,-151.0,0.00016438,2]
[366356717,1750206646612,-610.45,0.00016438,2]
[366356718,1750206646622,-490.0,0.00016438,2]
[366356719,1750206646632,-660.6,0.00016438,2]
[366356720,1750206646642,-490.0,0.00016438,2]
[366356721,1750206646651,-721.1,0.00016438,2]
[366356722,1750206646661,-1813.84,0.00016438,2]
[366356723,1750206646670,-151.0,0.00016438,2]
[366356724,1750206646680,-687.88,0.00016438,2]
[366356725,1750206646689,-151.0,0.00016438,2]
[366356726,1750206646699,-151.0,0.00016438,2]
[366356727,1750206646709,-490.0,0.00016438,2]
[366356728,1750206646720,-490.0,0.00016438,2]
[366356729,1750206646730,-490.0,0.00016438,2]
[366356730,1750206646739,-1349.9,0.00016438,2]
[366356731,1750206646748,-490.0,0.00016438,2]
[366356732,1750206646758,-1322.8,0.00016438,2]
[366356733,1750206646767,-490.0,0.00016438,2]
[366356734,1750206646777,-519.02,0.00016438,2]
[366356735,1750206646786,-151.0,0.00016438,2]
[366356736,1750206646796,-151.0,0.00016438,2]
[366356737,1750206646805,-644.52,0.00016438,2]
[366356738,1750206646815,-151.0,0.00016438,2]
[366356739,1750206646826,-151.0,0.00016438,2]
[366356740,1750206646835,-717.53,0.00016438,2]
[366356741,1750206646845,-675.84,0.00016438,2]
[366356742,1750206646855,-490.0,0.00016438,2]
[366356743,1750206646864,-151.0,0.00016438,2]
[366356744,1750206646874,-151.0,0.00016438,2]
[366356745,1750206646886,-607.86,0.00016438,2]
[366356746,1750206646895,-151.0,0.00016438,2]
[366356747,1750206646904,-151.0,0.00016438,2]
[366356748,1750206646914,-1385.73,0.00016438,2]
[366356749,1750206646923,-490.0,0.00016438,2]
[366356751,1750206646932,-1183.4,0.00016438,2]
[366356753,1750206646942,-514.26,0.00016438,2]
[366356755,1750206646951,-490.0,0.00016438,2]
[366356757,1750206646959,-490.0,0.00016438,2]
[366356759,1750206646969,-490.0,0.00016438,2]
[366356761,1750206646979,-490.0,0.00016438,2]
[366356763,1750206646988,-151.0,0.00016438,2]
[366356765,1750206646997,-361.37689109,0.00016438,2]
[366356766,1750206647007,-151.0,0.00016438,2]
[366356767,1750206647016,-490.0,0.00016438,2]
[366356768,1750206647026,-151.0,0.00016438,2]
[366356769,1750206647035,-151.0,0.00016438,2]
[366356770,1750206647045,-555.01,0.00016438,2]
[366356771,1750206647054,-490.0,0.00016438,2]
[366356772,1750206647064,-151.0,0.00016438,2]
[366356773,1750206647073,-151.0,0.00016438,2]
[366356774,1750206647083,-490.0,0.00016438,2]
[366356775,1750206647092,-151.0,0.00016438,2]
[366356776,1750206647102,-490.0,0.00016438,2]
[366356777,1750206647112,-151.0,0.00016438,2]
[366356778,1750206647121,-490.0,0.00016438,2]
[366356779,1750206647131,-151.0,0.00016438,2]
[366356780,1750206647141,-151.0,0.00016438,2]
[366356781,1750206647150,-490.0,0.00016438,2]
[366356782,1750206647160,-790.26,0.00016438,2]
[366356783,1750206647169,-151.0,0.00016438,2]
[366356784,1750206647179,-847.71,0.00016438,2]
[366356785,1750206647188,-1699.68,0.00016438,2]
[366356786,1750206647198,-490.0,0.00016438,2]
[366356787,1750206647208,-490.0,0.00016438,2]
[366356788,1750206647217,-2369.44,0.00016438,2]
[366356789,1750206647227,-151.0,0.00016438,2]
[366356790,1750206647242,-151.0,0.00016438,2]
[366356791,1750206647251,-151.0,0.00016438,2]
[366356792,1750206647261,-490.0,0.00016438,2]
[366356793,1750206647270,-490.0,0.00016438,2]
[366356794,1750206647279,-151.0,0.00016438,2]
[366356795,1750206647289,-151.0,0.00016438,2]
[366356796,1750206647299,-151.0,0.00016438,2]
[366356797,1750206647309,-490.0,0.00016438,2]
[366356798,1750206647319,-972.81,0.00016438,2]
[366356799,1750206647328,-828.83,0.00016438,2]